fUSD/lending_fUSD_20241117
["ID","MTS","AMOUNT","RATE_DAILY","PERIOD"]
[342443251,1731882645656,-251.1639998,0.0001,2]
[342443252,1731882645667,-49504.07424632,0.0001,2]
[342443253,1731882645678,-8972.35034969,0.0001,2]
[342443254,1731882645746,-448.13076527,0.0001,2]
[342443255,1731882645757,-5591.84887929,0.0001,2]
[342443259,1731882645833,-324.19255066,0.0001,2]
[342443260,1731882662466,500.0,8.22e-05,2]
[342443265,1731883206660,388.26,8.501e-05,2]
[342443266,1731883237741,1316.98,8.501e-05,2]
[342443267,1731883244166,2196.08,8.219e-05,2]
[342443268,1731883382319,250.0,8.484e-05,2]
[342443269,1731883536290,5000.0,0.00023,120]
[342443275,1731883737215,1689.71,8.449e-05,2]
[342443297,1731883831658,-1749.79,8.539e-05,2]
[342443298,1731883831667,-1000.0,8.545e-05,2]
[342443299,1731883831676,-342.91,8.56e-05,2]
[342443300,1731883831686,-639.47,8.58e-05,2]
[342443301,1731883831695,-250.0,8.581e-05,2]
[342443302,1731883831704,-406.54,8.581e-05,2]
[342443303,1731883831713,-705.8,8.621e-05,2]
[342443304,1731883831722,-150.0,8.822e-05,2]
[342443305,1731883831731,-250.0,8.826e-05,2]
[342443306,1731883831740,-1500.0,8.839e-05,2]
[342443307,1731883831941,-302.17,8.854e-05,2]
[342443308,1731883831952,-302.17,8.856e-05,2]
[342443309,1731883831961,-302.17,8.858e-05,2]
[342443310,1731883831970,-302.17,8.861e-05,2]
[342443311,1731883831980,-302.17,8.863e-05,2]
[342443312,1731883831989,-302.17,8.865e-05,2]
[342443313,1731883831998,-302.17,8.868e-05,2]
[342443314,1731883832008,-302.17,8.87e-05,2]
[342443315,1731883832017,-302.17,8.872e-05,2]
[342443316,1731883832026,-148.14030121,8.875e-05,2]
[342443317,1731883832038,-154.02969879,8.875e-05,2]
[342443318,1731883832047,-302.17,8.877e-05,2]
[342443319,1731883832056,-302.17,8.879e-05,2]
[342443320,1731883832065,-302.17,8.882e-05,2]
[342443321,1731883832074,-302.17,8.884e-05,2]
[342443322,1731883832085,-302.17,8.886e-05,2]
[342443323,1731883832095,-302.17,8.889e-05,2]
[342443324,1731883832104,-150.0,8.889e-05,2]
[342443325,1731883832113,-302.17,8.891e-05,2]
[342443326,1731883832122,-302.17,8.893e-05,2]
[342443327,1731883832131,-302.17,8.896e-05,2]
[342443329,1731883832140,-302.17,8.898e-05,2]
[342443331,1731883832150,-150.0,8.988e-05,2]
[342443332,1731883832159,-400.0,9e-05,3]
[342443333,1731883832168,-180.54,9.083e-05,2]
[342443334,1731883832177,-800.0,9.1e-05,3]
[342443335,1731883832186,-150.0,9.178e-05,2]
[342443336,1731883832196,-1300.0,9.2e-05,3]
[342443337,1731883832206,-1700.0,9.3e-05,3]
[342443338,1731883832215,-2100.0,9.4e-05,3]
[342443339,1731883832223,-400.0,9.5e-05,3]
[342443340,1731883832233,-500.0,9.59e-05,2]
[342443341,1731883832243,-400.0,9.6e-05,3]
[342443342,1731883832252,-1000.0,9.613e-05,2]
[342443343,1731883832261,-342.91,9.63e-05,2]
[342443344,1731883832271,-231.87,9.678e-05,2]
[342443345,1731883832282,-400.0,9.7e-05,3]
[342443346,1731883832292,-150.0,9.734e-05,2]
[342443347,1731883832303,-150.0,9.734e-05,2]
[342443348,1731883832316,-150.0,9.741e-05,2]
[342443349,1731883832327,-150.0,9.759e-05,2]
[342443350,1731883832338,-150.0,9.761e-05,2]
[342443351,1731883832348,-150.0,9.763e-05,2]
[342443352,1731883832359,-150.0,9.764e-05,2]
[342443353,1731883832368,-150.0,9.769e-05,2]
[342443354,1731883832378,-150.0,9.77e-05,2]
[342443355,1731883832389,-150.0,9.771e-05,2]
[342443356,1731883832399,-150.0,9.773e-05,2]
[342443357,1731883832410,-150.0,9.773e-05,2]
[342443358,1731883832420,-150.0,9.778e-05,2]
[342443359,1731883832430,-150.0,9.78e-05,2]
[342443360,1731883832441,-495.40631427,9.79e-05,2]
[342443361,1731883832450,-150.0,9.792e-05,2]
[342443362,1731883832459,-10180.6419,9.8e-05,2]
[342443363,1731883832469,-34698.9287,9.8e-05,2]
[342443364,1731883832478,-209.848883,9.8e-05,2]
[342443365,1731883832511,-535.159517,9.8e-05,2]
[342443366,1731883832521,-1292.8752,9.8e-05,2]
[342443367,1731883832531,-257.0483,9.8e-05,2]
[342443368,1731883832540,-400.0,9.8e-05,3]
[342443369,1731883832550,-150.0,9.821e-05,2]
[342443370,1731883832559,-150.0,9.825e-05,2]
[342443371,1731883832569,-150.0,9.828e-05,2]
[342443372,1731883832579,-150.0,9.829e-05,2]
[342443373,1731883832588,-150.0,9.832e-05,2]
[342443374,1731883832597,-150.0,9.834e-05,2]
[342443375,1731883832606,-150.0,9.838e-05,2]
[342443376,1731883832616,-150.0,9.846e-05,2]
[342443377,1731883832627,-150.0,9.854e-05,2]
[342443378,1731883832636,-150.0,9.856e-05,2]
[342443379,1731883832646,-150.0,9.856e-05,2]
[342443380,1731883832656,-150.0,9.863e-05,2]
[342443381,1731883832666,-260.20126181,9.868e-05,2]
[342443382,1731883832675,-150.0,9.871e-05,2]
[342443383,1731883832684,-150.0,9.871e-05,2]
[342443384,1731883832694,-150.0,9.883e-05,2]
[342443385,1731883832703,-150.0,9.893e-05,2]
[342443386,1731883832714,-150.0,9.898e-05,2]
[342443387,1731883832724,-127.90074666,9.9e-05,2]
[342443388,1731883832738,-1412.39714948,9.9e-05,2]
[342443389,1731883832791,-1473.91269238,9.9e-05,2]
[342443390,1731883832810,-3085.37750934,9.9e-05,2]
[342443391,1731883832822,-8060.59809881,9.9e-05,2]
[342443392,1731883832833,-34703.23007039,9.9e-05,2]
[342443393,1731883832895,-44872.3379,9.9e-05,2]
[342443403,1731883837808,-9763.5310758,9.9e-05,2]
[342443404,1731883837820,-2097.76684019,9.9e-05,2]
[342443405,1731883837831,-2025.84821695,9.9e-05,2]
[342443406,1731883837841,-869.0,9.9e-05,3]
[342443407,1731883837850,-150.0,9.904e-05,2]
[342443408,1731883837860,-150.0,9.905e-05,2]
[342443409,1731883837869,-150.0,9.91e-05,2]
[342443410,1731883837879,-150.0,9.917e-05,2]
[342443411,1731883837888,-150.0,9.919e-05,2]
[342443412,1731883837897,-150.0,9.921e-05,2]
[342443413,1731883837907,-150.0,9.922e-05,2]
[342443414,1731883837916,-150.0,9.923e-05,2]
[342443415,1731883837925,-118.51010277,9.924e-05,2]
[342443416,1731883837937,-31.48989723,9.924e-05,2]
[342443417,1731883837946,-150.0,9.94e-05,2]
[342443418,1731883837958,-150.0,9.941e-05,2]
[342443419,1731883837967,-150.0,9.952e-05,2]
[342443420,1731883837976,-150.0,9.961e-05,2]
[342443421,1731883837985,-150.0,9.962e-05,2]
[342443422,1731883837995,-150.0,9.972e-05,2]
[342443423,1731883838006,-500.0,9.973e-05,2]
[342443424,1731883838015,-150.0,9.973e-05,2]
[342443425,1731883838024,-5800.0,9.983e-05,2]
[342443426,1731883838034,-150.0,9.991e-05,2]
[342443427,1731883838043,-5800.0,9.992e-05,2]
[342443428,1731883838052,-2264.7655153,9.992e-05,2]
[342443429,1731883838061,-2434.5019192,9.993e-05,2]
[342443430,1731883838071,-2604.238323,9.993e-05,2]
[342443431,1731883838080,-2773.9747269,9.993e-05,2]
[342443432,1731883838089,-2943.7111308,9.993e-05,2]
[342443433,1731883838099,-8168.08,9.999e-05,2]
[342443434,1731883838109,-150.0,9.999e-05,2]
[342443435,1731883838120,-500.0,9.999e-05,2]
[342443436,1731883838129,-1189.09775577,9.999e-05,2]
[342443437,1731883838139,-20123.22091019,0.0001,2]
[342443438,1731883838150,-36425.87455769,0.0001,2]
[342443439,1731883838162,-214284.28216662,0.0001,2]
[342443440,1731883838171,-5975.88292207,0.0001,2]
[342443441,1731883838180,-673678.32991871,0.0001,2]
[342443445,1731883838243,-5365105.27521987,0.0001,2]
[342443447,1731883838256,-754.6016594,0.0001,2]
[342443450,1731883838271,-1852.65,0.0001,2]
[342443452,1731883838282,-9397.13132288,0.0001,2]
[342443472,1731883838448,-363.50002513,0.0001,2]
[342443474,1731883838459,-4677.82886025,0.0001,2]
[342443475,1731883838470,-2281.212458,0.0001,2]
[342443478,1731883839795,-250.0,9.015e-05,2]
[342443479,1731883839811,-4040.60141297,0.0001,2]
[342443480,1731883839849,-2680.7832894,0.0001,2]
[342443481,1731883839867,-7730.58869104,0.0001,2]
[342443482,1731883839884,-1815.33,0.0001,2]
[342443483,1731883839954,-511.58155791,0.0001,2]
[342443485,1731883840432,-85777161.90238848,0.0001,2]
[342443486,1731883840448,-985.87,0.0001,2]
[342443487,1731883840463,-1000.0,0.0001,2]
[342443488,1731883840478,-8500.0,0.0001,2]
[342443489,1731883840494,-5037.34620076,0.0001,2]
[342443490,1731883840508,-18901086.47749776,0.0001,2]
[342443491,1731883840529,-8606232.72,0.0001,2]
[342443492,1731883840548,-1215440.10533509,0.0001,2]
[342443493,1731883840563,-11175.68267803,0.0001,2]
[342443494,1731883840579,-1000.0,0.0001,2]
[342443495,1731883840594,-1000.0,0.0001,2]
[342443496,1731883840608,-1000.0,0.0001,2]
[342443497,1731883840623,-1000.0,0.0001,2]
[342443498,1731883840643,-1000.0,0.0001,2]
[342443499,1731883840658,-1000.0,0.0001,2]
[342443500,1731883840672,-1000.0,0.0001,2]
[342443501,1731883840688,-1000.0,0.0001,2]
[342443502,1731883840704,-1000.0,0.0001,2]
[342443503,1731883840723,-1000.0,0.0001,2]
[342443504,1731883840736,-1000.0,0.0001,2]
[342443505,1731883840746,-1000.0,0.0001,2]
[342443506,1731883840755,-1000.0,0.0001,2]
[342443507,1731883841057,-1000.0,0.0001,2]
[342443508,1731883841076,-1000.0,0.0001,2]
[342443509,1731883841086,-1000.0,0.0001,2]
[342443510,1731883841095,-1000.0,0.0001,2]
[342443511,1731883841104,-1000.0,0.0001,2]
[342443512,1731883841114,-1000.0,0.0001,2]
[342443513,1731883841123,-1000.0,0.0001,2]
[342443514,1731883841132,-1000.0,0.0001,2]
[342443515,1731883841141,-1000.0,0.0001,2]
[342443516,1731883841150,-1000.0,0.0001,2]
[342443517,1731883841161,-1000.0,0.0001,2]
[342443518,1731883841171,-1000.0,0.0001,2]
[342443519,1731883841180,-1000.0,0.0001,2]
[342443520,1731883841191,-1000.0,0.0001,2]
[342443521,1731883841200,-1000.0,0.0001,2]
[342443522,1731883841210,-1000.0,0.0001,2]
[342443523,1731883841220,-1000.0,0.0001,2]
[342443524,1731883841229,-1000.0,0.0001,2]
[342443525,1731883841239,-1000.0,0.0001,2]
[342443526,1731883841251,-1000.0,0.0001,2]
[342443527,1731883841264,-1000.0,0.0001,2]
[342443528,1731883841273,-1000.0,0.0001,2]
[342443529,1731883841282,-47951.58603402,0.0001,2]
[342443530,1731883841292,-511590.92095286,0.0001,2]
[342443531,1731883841304,-10088.44863767,0.0001,2]
[342443532,1731883841315,-200.0,0.0001,2]
[342443533,1731883841327,-1000.0,0.0001,2]
[342443534,1731883841339,-1000.0,0.0001,2]
[342443535,1731883841351,-1000.0,0.0001,2]
[342443536,1731883841360,-1000.0,0.0001,2]
[342443537,1731883841370,-1000.0,0.0001,2]
[342443538,1731883841381,-1000.0,0.0001,2]
[342443539,1731883841391,-1000.0,0.0001,2]
[342443540,1731883841402,-1000.0,0.0001,2]
[342443541,1731883841412,-1000.0,0.0001,2]
[342443542,1731883841422,-1000.0,0.0001,2]
[342443543,1731883841431,-1000.0,0.0001,2]
[342443544,1731883841440,-1000.0,0.0001,2]
[342443545,1731883841449,-1000.0,0.0001,2]
[342443546,1731883841459,-1000.0,0.0001,2]
[342443547,1731883841467,-1000.0,0.0001,2]
[342443548,1731883841477,-1000.0,0.0001,2]
[342443549,1731883841486,-1000.0,0.0001,2]
[342443550,1731883841495,-1000.0,0.0001,2]
[342443551,1731883841504,-1000.0,0.0001,2]
[342443552,1731883841515,-1000.0,0.0001,2]
[342443553,1731883841524,-1000.0,0.0001,2]
[342443554,1731883841534,-1000.0,0.0001,2]
[342443555,1731883841545,-1000.0,0.0001,2]
[342443556,1731883841555,-1000.0,0.0001,2]
[342443557,1731883841565,-1000.0,0.0001,2]
[342443558,1731883841576,-1000.0,0.0001,2]
[342443559,1731883841586,-1000.0,0.0001,2]
[342443560,1731883841596,-1000.0,0.0001,2]
[342443561,1731883841606,-1000.0,0.0001,2]
[342443562,1731883841617,-5800.0,0.0001,2]
[342443563,1731883841628,-1000.0,0.0001,2]
[342443564,1731883841636,-1000.0,0.0001,2]
[342443565,1731883841646,-1000.0,0.0001,2]
[342443566,1731883841655,-1000.0,0.0001,2]
[342443567,1731883841665,-1000.0,0.0001,2]
[342443568,1731883841674,-1000.0,0.0001,2]
[342443569,1731883841683,-1000.0,0.0001,2]
[342443570,1731883841693,-1000.0,0.0001,2]
[342443571,1731883841702,-325.99927851,0.0001,2]
[342443572,1731883841711,-692.95220106,0.0001,2]
[342443573,1731883841720,-200.0,0.0001,2]
[342443574,1731883841731,-250.0,0.0001,2]
[342443575,1731883841742,-158.51714257,0.0001,2]
[342443576,1731883841753,-200.0,0.0001,2]
[342443577,1731883841764,-3000.0,0.0001,2]
[342443578,1731883841773,-372.35102555,0.0001,2]
[342443579,1731883841782,-7614.88,0.0001,2]
[342443580,1731883841792,-486060.41,0.00010099,2]
[342443581,1731883841802,-200.0,0.000101,2]
[342443582,1731883841811,-200.0,0.000101,2]
[342443583,1731883841821,-200.0,0.000101,2]
[342443584,1731883841831,-1029.0,0.000101,2]
[342443585,1731883841841,-426.54099135,0.00010143,2]
[342443586,1731883841850,-151.0,0.00010182,2]
[342443587,1731883841859,-1256.0,0.000102,2]
[342443588,1731883841870,-563.0,0.000102,2]
[342443589,1731883841882,-628.0,0.000102,2]
[342443590,1731883841892,-279.56,0.000102,2]
[342443591,1731883841902,-1993.0,0.000102,2]
[342443592,1731883841911,-1925.0,0.000102,2]
[342443593,1731883841921,-625.657,0.000102,2]
[342443594,1731883841931,-1260.0,0.000102,2]
[342443595,1731883841941,-3746.0,0.000102,2]
[342443596,1731883841950,-814.0,0.000102,2]
[342443597,1731883841959,-923.0,0.000102,2]
[342443598,1731883841968,-3491.0,0.000102,2]
[342443599,1731883841977,-13647.0,0.000102,2]
[342443600,1731883841987,-158.792,0.000102,2]
[342443601,1731883841996,-5936.0,0.000102,2]
[342443602,1731883842005,-895.846,0.000102,2]
[342443603,1731883842015,-1092.0,0.000102,2]
[342443604,1731883842024,-200.0,0.00010201,2]
[342443605,1731883842033,-200.0,0.00010201,2]
[342443606,1731883842042,-200.0,0.00010201,2]
[342443607,1731883842051,-500.0,0.00010273,2]
[342443608,1731883842060,-434.24,0.00010278,2]
[342443609,1731883842070,-200.0,0.00010303,2]
[342443610,1731883842079,-200.0,0.00010303,2]
[342443611,1731883842088,-200.0,0.00010303,2]
[342443612,1731883842096,-7954.0,0.00010349,2]
[342443613,1731883842107,-2196.08,0.00010397,2]
[342443614,1731883842117,-363.0,0.000104,2]
[342443615,1731883842126,-1000.0,0.000104,2]
[342443616,1731883842135,-229.0,0.000104,2]
[342443617,1731883842145,-200.0,0.00010406,2]
[342443618,1731883842155,-200.0,0.00010406,2]
[342443619,1731883842164,-200.0,0.00010406,2]
[342443620,1731883842174,-500.0,0.00010547,2]
[342443621,1731883842184,-426.54099135,0.00010565,2]
[342443622,1731883842193,-1000.0,0.00010682,2]
[342443623,1731883842202,-342.91,0.000107,2]
[342443624,1731883842211,-426.54099135,0.00010738,2]
[342443625,1731883842221,-2698.0,0.00010788,3]
[342443626,1731883842230,-500.0,0.00010821,2]
[342443627,1731883842239,-1976.757,0.00010862,2]
[342443628,1731883842249,-174.743,0.00010862,2]
[342443629,1731883842259,-182.82,0.00010889,2]
[342443630,1731883842268,-820.73830526,0.000109,2]
[342443631,1731883842277,-1033.0,0.000109,2]
[342443632,1731883842287,-152.0,0.00010915,3]
[342443633,1731883842297,-2697.1,0.00010938,4]
[342443634,1731883842306,-500.0,0.00010958,2]
[342443635,1731883842315,-241.3097471,0.00010958,2]
[342443636,1731883842328,-293.11257641,0.00010958,2]
[342443637,1731883842337,-500.0,0.00010958,2]
[342443638,1731883842347,-500.0,0.00010958,2]
[342443639,1731883842356,-334.77170599,0.00010958,2]
[342443640,1731883842366,-500.0,0.00010958,2]
[342443641,1731883842376,-500.0,0.00010958,2]
[342443642,1731883842386,-500.0,0.00010958,2]
[342443643,1731883842398,-500.0,0.00010958,2]
[342443644,1731883842409,-200.0,0.00010959,2]
[342443645,1731883842419,-1451.07,0.00010959,2]
[342443646,1731883842428,-150.0,0.00010959,2]
[342443647,1731883842438,-150.0,0.00010959,2]
[342443648,1731883842448,-418.95718944,0.0001096,2]
[342443649,1731883842457,-500.0,0.0001096,2]
[342443650,1731883842466,-500.0,0.0001096,2]
[342443651,1731883842475,-500.0,0.0001096,2]
[342443653,1731883842484,-1957.9916839,0.00010991,2]
[342443655,1731883842493,-1141.0263251,0.00010991,2]
[342443656,1731883842503,-2104.7364418,0.00010992,2]
[342443657,1731883842513,-2251.4811997,0.00010992,2]
[342443658,1731883842523,-2398.2259575,0.00010992,2]
[342443659,1731883842532,-2544.9707154,0.00010992,2]
[342443660,1731883842541,-2691.7154733,0.00010992,2]
[342443661,1731883842551,-3113.4475346,0.00010992,2]
[342443662,1731883842560,-1231.0843415,0.00010992,2]
[342443663,1731883842569,-1321.142358,0.00010992,2]
[342443664,1731883842578,-1411.2003745,0.00010992,2]
[342443665,1731883842587,-1501.2583909,0.00010992,2]
[342443666,1731883842596,-1591.3164074,0.00010992,2]
[342443667,1731883842606,-1000.0,0.00010999,2]
[342443668,1731883842615,-1000.0,0.00010999,2]
[342443669,1731883842623,-1000.0,0.00010999,2]
[342443670,1731883842632,-426.54099135,0.00010999,2]
[342443671,1731883842641,-1595114.32494144,0.00011,2]
[342443672,1731883842653,-2173.25999725,0.00011,2]
[342443673,1731883842665,-640.2855782,0.00011,2]
[342443674,1731883842676,-532.4,0.00011,2]
[342443682,1731883845925,-156.08407214,9.99e-05,2]
[342443683,1731883845935,-351.76383254,9.999e-05,2]
[342443684,1731883845945,-168.95608653,0.00011,2]
[342443685,1731883845957,-3876.237903,0.00011,2]
[342443686,1731883879942,500.0,8.22e-05,2]
[342443687,1731883910184,500.0,8.22e-05,2]
[342443688,1731883911716,500.0,8.22e-05,2]
[342443689,1731884184997,1976.47,8.219e-05,2]
[342443691,1731884821901,-154.05,0.0002277,60]
[342443692,1731884829732,-16000.0,0.00024,60]
[342443693,1731884829768,-365.889318,0.00024974,120]
[342443694,1731884829801,-300.0,0.00025,60]
[342443695,1731884829844,-500.0,0.00025,60]
[342443696,1731884829874,-500.0,0.00025,60]
[342443697,1731884829903,-500.0,0.00025,60]
[342443698,1731884829934,-500.0,0.00025,60]
[342443699,1731884829964,-500.0,0.00025,60]
[342443700,1731884829995,-547.41362686,0.00025,60]
[342443701,1731884830024,-500.0,0.00025,60]
[342443702,1731884830052,-500.0,0.00025,60]
[342443703,1731884830081,-500.0,0.00025,60]
[342443704,1731884830110,-601.2808776,0.00025,60]
[342443705,1731884830140,-500.0,0.00025,60]
[342443706,1731884830171,-500.0,0.00025,60]
[342443707,1731884830199,-424.47122214,0.00025,60]
[342443708,1731884830228,-500.0,0.00025,60]
[342443709,1731884830259,-500.0,0.00025,60]
[342443710,1731884830290,-500.0,0.00025,60]
[342443711,1731884830320,-500.50725434,0.00025,60]
[342443712,1731884830350,-500.0,0.00025,60]
[342443713,1731884830380,-500.0,0.00025,60]
[342443714,1731884830410,-500.0,0.00025,60]
[342443715,1731884830439,-500.59878219,0.00025,60]
[342443716,1731884830468,-500.0,0.00025,60]
[342443717,1731884830500,-500.0,0.00025,60]
[342443718,1731884830530,-500.0,0.00025,60]
[342443719,1731884830561,-499.29396613,0.00025,60]
[342443720,1731884830592,-500.0,0.00025,60]
[342443721,1731884830622,-500.0,0.00025,60]
[342443722,1731884830654,-500.0,0.00025,60]
[342443723,1731884830684,-500.0,0.00025,60]
[342443724,1731884830716,-386.19607287,0.00025,60]
[342443725,1731884830780,-113.80392713,0.00025,60]
[342443726,1731884830790,-500.0,0.00025,60]
[342443727,1731884830799,-500.0,0.00025,60]
[342443728,1731884830809,-500.0,0.00025,60]
[342443729,1731884831013,-500.0,0.00025,60]
[342443730,1731884831023,-500.0,0.00025,60]
[342443731,1731884831034,-500.18423705,0.00025,60]
[342443732,1731884831043,-500.0,0.00025,60]
[342443733,1731884831053,-500.0,0.00025,60]
[342443734,1731884831062,-500.0,0.00025,60]
[342443735,1731884831072,-500.0,0.00025,60]
[342443736,1731884831081,-500.0,0.00025,60]
[342443737,1731884831091,-500.0,0.00025,60]
[342443738,1731884831100,-411.90819571,0.00025,60]
[342443739,1731884831110,-500.0,0.00025,60]
[342443740,1731884831119,-500.0,0.00025,60]
[342443741,1731884831128,-402.07788651,0.00025,60]
[342443742,1731884831137,-500.0,0.00025,60]
[342443743,1731884831147,-500.0,0.00025,60]
[342443744,1731884831156,-500.0,0.00025,60]
[342443745,1731884831166,-500.0,0.00025,60]
[342443746,1731884831175,-398.31979453,0.00025,60]
[342443747,1731884831185,-500.0,0.00025,60]
[342443748,1731884831195,-548.96643054,0.00025,60]
[342443749,1731884831204,-500.0,0.00025,60]
[342443750,1731884831213,-537.89490923,0.00025,60]
[342443751,1731884831223,-500.0,0.00025,60]
[342443752,1731884831233,-500.0,0.00025,60]
[342443753,1731884831244,-500.0,0.00025,60]
[342443754,1731884831254,-500.59648175,0.00025,60]
[342443755,1731884831263,-500.0,0.00025,60]
[342443756,1731884831273,-500.0,0.00025,60]
[342443757,1731884831282,-500.0,0.00025,60]
[342443758,1731884831292,-86.24813755,0.00025,60]
[342443759,1731884831366,-365.889318,0.00025,60]
[342443760,1731884831398,-48.46685343,0.00025,60]
[342443761,1731884831407,-251.53314657,0.00025,60]
[342443762,1731884831452,-248.46685343,0.00025,60]
[342443763,1731884831462,-251.53314657,0.00025,60]
[342443764,1731884831496,-248.46685343,0.00025,60]
[342443765,1731884831506,-251.53314657,0.00025,60]
[342443766,1731884831541,-248.46685343,0.00025,60]
[342443767,1731884831552,-251.53314657,0.00025,60]
[342443768,1731884831599,-249.26447327,0.00025,60]
[342443769,1731884831609,-173.55245426,0.00025,60]
[342443770,1731884831619,-77.18307247,0.00025,60]
[342443771,1731884831658,-422.81692753,0.00025,60]
[342443772,1731884831669,-77.18307247,0.00025,60]
[342443773,1731884831710,-422.81692753,0.00025,60]
[342443774,1731884831719,-124.59669933,0.00025,60]
[342443775,1731884832659,-375.40330067,0.00025,60]
[342443776,1731884832669,-124.59669933,0.00025,60]
[342443777,1731884832699,-375.40330067,0.00025,60]
[342443778,1731884832708,-124.59669933,0.00025,60]
[342443779,1731884832738,-375.40330067,0.00025,60]
[342443780,1731884832758,-124.59669933,0.00025,60]
[342443781,1731884832809,-375.40330067,0.00025,60]
[342443782,1731884832819,-225.87757693,0.00025,60]
[342443783,1731884832855,-274.12242307,0.00025,60]
[342443784,1731884832865,-225.87757693,0.00025,60]
[342443785,1731884832902,-274.12242307,0.00025,60]
[342443786,1731884832912,-225.87757693,0.00025,60]
[342443787,1731884832939,-274.12242307,0.00025,60]
[342443788,1731884832949,-150.34879907,0.00025,60]
[342443789,1731884832988,-350.45897502,0.00025,60]
[342443790,1731884833000,-149.54102498,0.00025,60]
[342443791,1731884833031,-350.45897502,0.00025,60]
[342443792,1731884833040,-149.54102498,0.00025,60]
[342443793,1731884833075,-350.45897502,0.00025,60]
[342443794,1731884833084,-149.54102498,0.00025,60]
[342443795,1731884833113,-350.45897502,0.00025,60]
[342443796,1731884833123,-150.04827932,0.00025,60]
[342443797,1731884833152,-349.95172068,0.00025,60]
[342443798,1731884833162,-150.04827932,0.00025,60]
[342443799,1731884833197,-349.95172068,0.00025,60]
[342443800,1731884833208,-150.04827932,0.00025,60]
[342443801,1731884833236,-349.95172068,0.00025,60]
[342443802,1731884833248,-150.04827932,0.00025,60]
[342443803,1731884833276,-349.95172068,0.00025,60]
[342443804,1731884833286,-150.64706151,0.00025,60]
[342443805,1731884833324,-349.35293849,0.00025,60]
[342443806,1731884833334,-150.64706151,0.00025,60]
[342443807,1731884833367,-349.35293849,0.00025,60]
[342443808,1731884833377,-150.64706151,0.00025,60]
[342443809,1731884833419,-349.35293849,0.00025,60]
[342443810,1731884833429,-150.64706151,0.00025,60]
[342443811,1731884833469,-349.35293849,0.00025,60]
[342443812,1731884833479,-149.94102764,0.00025,60]
[342443813,1731884833517,-353.89337872,0.00025,60]
[342443814,1731884833526,-146.10662128,0.00025,60]
[342443815,1731884833574,-353.89337872,0.00025,60]
[342443816,1731884833584,-146.10662128,0.00025,60]
[342443817,1731884833637,-353.89337872,0.00025,60]
[342443818,1731884833659,-146.10662128,0.00025,60]
[342443819,1731884833728,-353.89337872,0.00025,60]
[342443820,1731884833754,-146.10662128,0.00025,60]
[342443821,1731884833817,-353.89337872,0.00025,60]
[342443822,1731884833833,-146.10662128,0.00025,60]
[342443823,1731884849223,1877.64,8.219e-05,2]
[342443834,1731885031950,-250.0,9.544e-05,2]
[342443835,1731885031960,-250.0,9.578e-05,2]
[342443836,1731885031970,-1000.0,9.697e-05,2]
[342443837,1731885031979,-250.0,9.735e-05,2]
[342443838,1731885031989,-300.0,9.799e-05,2]
[342443839,1731885031999,-34813.1069,9.8e-05,2]
[342443840,1731885032008,-538.8703,9.8e-05,2]
[342443841,1731885032017,-236.22591877,9.863e-05,2]
[342443842,1731885032026,-400.0,9.9e-05,3]
[342443843,1731885032036,-500.0,9.999e-05,2]
[342443844,1731885032046,-887.28,0.0001,2]